Workbook

Sheet 2023年9月东石镇城乡低保金、用电优惠金发放花名册
A1: 附件1
A2: 2023年9月东石镇城乡低保金、用电优惠金发放花名册
A3: 序号 | B3: 村（社区） | C3: 户主姓名 | D3: 保障人数 | E3: 月保障金（元） | F3: 市财政负担（元） | G3: 用电优惠金（元）
A4: 1 | B4: 第一社区居委会 | C4: 叶建东 | D4: 1 | E4: 900 | F4: 900 | G4: 20
A5: 2 | B5: 第一社区居委会 | C5: 叶建志 | D5: 1 | E5: 900 | F5: 900 | G5: 20
A6: 3 | B6: 第一社区居委会 | C6: 叶志伟 | D6: 1 | E6: 900 | F6: 900 | G6: 20
A7: 4 | B7: 第一社区居委会 | C7: 叶文色 | D7: 1 | E7: 900 | F7: 900 | G7: 20
A8: 5 | B8: 第一社区居委会 | C8: 苏福裕 | D8: 3 | E8: 1240 | F8: 1240 | G8: 20
A9: 6 | B9: 第一社区居委会 | C9: 蔡东日 | D9: 4 | E9: 2100 | F9: 2100 | G9: 20
A10: 7 | B10: 第一社区居委会 | C10: 蔡亚查 | D10: 1 | E10: 900 | F10: 900 | G10: 20
A11: 8 | B11: 第一社区居委会 | C11: 蔡嘉鑫 | D11: 3 | E11: 2700 | F11: 2700 | G11: 20
A12: 9 | B12: 第一社区居委会 | C12: 蔡奇超 | D12: 1 | E12: 900 | F12: 900 | G12: 20
A13: 10 | B13: 第一社区居委会 | C13: 蔡婉真 | D13: 3 | E13: 1542 | F13: 1542 | G13: 20
A14: 11 | B14: 第一社区居委会 | C14: 蔡振土 | D14: 3 | E14: 1842 | F14: 1842 | G14: 20
A15: 12 | B15: 第一社区居委会 | C15: 蔡水滩 | D15: 1 | E15: 900 | F15: 900 | G15: 20
A16: 13 | B16: 第一社区居委会 | C16: 蔡水筑 | D16: 1 | E16: 900 | F16: 900 | G16: 20
A17: 14 | B17: 第一社区居委会 | C17: 蔡淑燕 | D17: 1 | E17: 900 | F17: 900 | G17: 20
A18: 15 | B18: 第一社区居委会 | C18: 蔡添丁 | D18: 2 | E18: 1550 | F18: 1550 | G18: 20
A19: 16 | B19: 第一社区居委会 | C19: 蔡清艺 | D19: 3 | E19: 1290 | F19: 1290 | G19: 20
A20: 17 | B20: 第一社区居委会 | C20: 蔡玉妹 | D20: 1 | E20: 900 | F20: 900 | G20: 20
A21: 18 | B21: 第一社区居委会 | C21: 蔡秀端 | D21: 1 | E21: 900 | F21: 900 | G21: 20
A22: 19 | B22: 第一社区居委会 | C22: 蔡素忍 | D22: 2 | E22: 1800 | F22: 1800 | G22: 20
A23: 20 | B23: 第一社区居委会 | C23: 蔡语彤 | D23: 1 | E23: 580 | F23: 580 | G23: 20
A24: 21 | B24: 第一社区居委会 | C24: 蔡连枝 | D24: 4 | E24: 3300 | F24: 3300 | G24: 20
A25: 22 | B25: 第一社区居委会 | C25: 蔡金升 | D25: 1 | E25: 900 | F25: 900 | G25: 20
A26: 23 | B26: 第一社区居委会 | C26: 蔡锦添 | D26: 1 | E26: 900 | F26: 900 | G26: 20
A27: 24 | B27: 第一社区居委会 | C27: 蔡长借 | D27: 2 | E27: 1360 | F27: 1360 | G27: 20
A28: 25 | B28: 第一社区居委会 | C28: 蔡长南 | D28: 2 | E28: 1460 | F28: 1460 | G28: 20
A29: 26 | B29: 第一社区居委会 | C29: 蔡长杰 | D29: 1 | E29: 900 | F29: 900 | G29: 20
A30: 27 | B30: 第一社区居委会 | C30: 蔡长轮 | D30: 1 | E30: 900 | F30: 900 | G30: 20
A31: 28 | B31: 第一社区居委会 | C31: 蔡香菇 | D31: 2 | E31: 1000 | F31: 1000 | G31: 20
A32: 29 | B32: 第一社区居委会 | C32: 詹梅华 | D32: 2 | E32: 960 | F32: 960 | G32: 20
A33: 30 | B33: 第一社区居委会 | C33: 许祖职 | D33: 1 | E33: 900 | F33: 900 | G33: 20
A34: 31 | B34: 第一社区居委会 | C34: 陈英英 | D34: 3 | E34: 1941 | F34: 1941 | G34: 20
A35: 32 | B35: 第一社区居委会 | C35: 黄东云 | D35: 1 | E35: 780 | F35: 780 | G35: 20
A36: 33 | B36: 第一社区居委会 | C36: 黄联成 | D36: 2 | E36: 1800 | F36: 1800 | G36: 20
A37: 34 | B37: 第二社区居委会 | C37: 周为民 | D37: 2 | E37: 1800 | F37: 1800 | G37: 20
A38: 35 | B38: 第二社区居委会 | C38: 周家文 | D38: 1 | E38: 900 | F38: 900 | G38: 20
A39: 36 | B39: 第二社区居委会 | C39: 曾伟强 | D39: 1 | E39: 900 | F39: 900 | G39: 20
A40: 37 | B40: 第二社区居委会 | C40: 曾兴旺 | D40: 1 | E40: 900 | F40: 900 | G40: 20
A41: 38 | B41: 第二社区居委会 | C41: 蔡喜鹊 | D41: 2 | E41: 1800 | F41: 1800 | G41: 20
A42: 39 | B42: 第二社区居委会 | C42: 蔡培养 | D42: 3 | E42: 1490 | F42: 1490 | G42: 20
A43: 40 | B43: 第二社区居委会 | C43: 蔡婉彬 | D43: 1 | E43: 900 | F43: 900 | G43: 20
A44: 41 | B44: 第二社区居委会 | C44: 蔡婉真 | D44: 1 | E44: 900 | F44: 900 | G44: 20
A45: 42 | B45: 第二社区居委会 | C45: 蔡建设 | D45: 4 | E45: 1500 | F45: 1500 | G45: 20
A46: 43 | B46: 第二社区居委会 | C46: 蔡秀荣 | D46: 2 | E46: 1800 | F46: 1800 | G46: 20
A47: 44 | B47: 第二社区居委会 | C47: 蔡美治 | D47: 3 | E47: 1542 | F47: 1542 | G47: 20
A48: 45 | B48: 第二社区居委会 | C48: 蔡长乐 | D48: 2 | E48: 1800 | F48: 1800 | G48: 20
A49: 46 | B49: 第二社区居委会 | C49: 黄真真 | D49: 5 | E49: 2425 | F49: 2425 | G49: 20
A50: 47 | B50: 第二社区居委会 | C50: 黄秀秀 | D50: 3 | E50: 1005 | F50: 1005 | G50: 20
A51: 48 | B51: 第五社区居委会 | C51: 王珊珊 | D51: 1 | E51: 900 | F51: 900 | G51: 20
A52: 49 | B52: 第五社区居委会 | C52: 蔡丽专 | D52: 2 | E52: 1050 | F52: 1050 | G52: 20
A53: 50 | B53: 第五社区居委会 | C53: 蔡招治 | D53: 1 | E53: 900 | F53: 900 | G53: 20
A54: 51 | B54: 第五社区居委会 | C54: 郑跃新 | D54: 1 | E54: 900 | F54: 900 | G54: 20
A55: 52 | B55: 第三社区居委会 | C55: 叶宝珠 | D55: 3 | E55: 1640 | F55: 1640 | G55: 20
A56: 53 | B56: 第三社区居委会 | C56: 吴乌笑 | D56: 1 | E56: 810 | F56: 810 | G56: 20
A57: 54 | B57: 第三社区居委会 | C57: 吴先 | D57: 1 | E57: 900 | F57: 900 | G57: 20
A58: 55 | B58: 第三社区居委会 | C58: 杨梅兰 | D58: 2 | E58: 1160 | F58: 1160 | G58: 20
A59: 56 | B59: 第三社区居委会 | C59: 王美冷 | D59: 3 | E59: 1500 | F59: 1500 | G59: 20
A60: 57 | B60: 第三社区居委会 | C60: 蔡丽明 | D60: 2 | E60: 1560 | F60: 1560 | G60: 20
A61: 58 | B61: 第三社区居委会 | C61: 蔡乌时 | D61: 2 | E61: 1800 | F61: 1800 | G61: 20
A62: 59 | B62: 第三社区居委会 | C62: 蔡双喜 | D62: 1 | E62: 900 | F62: 900 | G62: 20
A63: 60 | B63: 第三社区居委会 | C63: 蔡文化 | D63: 1 | E63: 900 | F63: 900 | G63: 20
A64: 61 | B64: 第三社区居委会 | C64: 蔡明芬 | D64: 1 | E64: 900 | F64: 900 | G64: 20
A65: 62 | B65: 第三社区居委会 | C65: 蔡永成 | D65: 1 | E65: 900 | F65: 900 | G65: 20
A66: 63 | B66: 第三社区居委会 | C66: 蔡秀京 | D66: 1 | E66: 900 | F66: 900 | G66: 20
A67: 64 | B67: 第三社区居委会 | C67: 蔡秀缘 | D67: 2 | E67: 1350 | F67: 1350 | G67: 20
A68: 65 | B68: 第三社区居委会 | C68: 蔡秋雪 | D68: 1 | E68: 900 | F68: 900 | G68: 20
A69: 66 | B69: 第三社区居委会 | C69: 蔡达奇 | D69: 5 | E69: 3200 | F69: 3200 | G69: 20
A70: 67 | B70: 第三社区居委会 | C70: 蔡金满 | D70: 1 | E70: 900 | F70: 900 | G70: 20
A71: 68 | B71: 第三社区居委会 | C71: 蔡长益 | D71: 1 | E71: 900 | F71: 900 | G71: 20
A72: 69 | B72: 第三社区居委会 | C72: 许龙峰 | D72: 1 | E72: 900 | F72: 900 | G72: 20
A73: 70 | B73: 第四社区居委会 | C73: 叶淑惠 | D73: 1 | E73: 900 | F73: 900 | G73: 20
A74: 71 | B74: 第四社区居委会 | C74: 洪声毅 | D74: 1 | E74: 900 | F74: 900 | G74: 20
A75: 72 | B75: 第四社区居委会 | C75: 王栋樑 | D75: 1 | E75: 900 | F75: 900 | G75: 20
A76: 73 | B76: 第四社区居委会 | C76: 苏建勇 | D76: 1 | E76: 810 | F76: 810 | G76: 20
A77: 74 | B77: 第四社区居委会 | C77: 苏振东 | D77: 3 | E77: 1377 | F77: 1377 | G77: 20
A78: 75 | B78: 第四社区居委会 | C78: 蔡伟荣 | D78: 1 | E78: 900 | F78: 900 | G78: 20
A79: 76 | B79: 第四社区居委会 | C79: 蔡国营 | D79: 1 | E79: 900 | F79: 900 | G79: 20
A80: 77 | B80: 第四社区居委会 | C80: 蔡尚兴 | D80: 1 | E80: 900 | F80: 900 | G80: 20
A81: 78 | B81: 第四社区居委会 | C81: 蔡尚鹏 | D81: 3 | E81: 2100 | F81: 2100 | G81: 20
A82: 79 | B82: 第四社区居委会 | C82: 蔡崇補 | D82: 1 | E82: 725 | F82: 725 | G82: 20
A83: 80 | B83: 第四社区居委会 | C83: 蔡建开 | D83: 3 | E83: 2700 | F83: 2700 | G83: 20
A84: 81 | B84: 第四社区居委会 | C84: 蔡志良 | D84: 1 | E84: 900 | F84: 900 | G84: 20
A85: 82 | B85: 第四社区居委会 | C85: 蔡有为 | D85: 1 | E85: 900 | F85: 900 | G85: 20
A86: 83 | B86: 第四社区居委会 | C86: 蔡玲玲 | D86: 1 | E86: 900 | F86: 900 | G86: 20
A87: 84 | B87: 第四社区居委会 | C87: 蔡珀隆 | D87: 1 | E87: 900 | F87: 900 | G87: 20
A88: 85 | B88: 第四社区居委会 | C88: 蔡祈兴 | D88: 1 | E88: 900 | F88: 900 | G88: 20
A89: 86 | B89: 第四社区居委会 | C89: 蔡秀润 | D89: 1 | E89: 900 | F89: 900 | G89: 20
A90: 87 | B90: 第四社区居委会 | C90: 蔡该得 | D90: 3 | E90: 2700 | F90: 2700 | G90: 20
A91: 88 | B91: 第四社区居委会 | C91: 蔡金镇 | D91: 4 | E91: 3600 | F91: 3600 | G91: 20
A92: 89 | B92: 郭岑村委会 | C92: 杨天琛 | D92: 2 | E92: 1400 | F92: 1400 | G92: 20
A93: 90 | B93: 郭岑村委会 | C93: 杨天良 | D93: 5 | E93: 2500 | F93: 2500 | G93: 20
A94: 91 | B94: 郭岑村委会 | C94: 杨娜娜 | D94: 4 | E94: 2220 | F94: 2220 | G94: 20
A95: 92 | B95: 郭岑村委会 | C95: 杨婉秋 | D95: 4 | E95: 1800 | F95: 1800 | G95: 20
A96: 93 | B96: 郭岑村委会 | C96: 杨开智 | D96: 4 | E96: 1820 | F96: 1820 | G96: 20
A97: 94 | B97: 郭岑村委会 | C97: 杨式铆 | D97: 2 | E97: 1440 | F97: 1440 | G97: 20
A98: 95 | B98: 郭岑村委会 | C98: 杨志刚 | D98: 2 | E98: 1800 | F98: 1800 | G98: 20
A99: 96 | B99: 郭岑村委会 | C99: 杨明忍 | D99: 2 | E99: 1800 | F99: 1800 | G99: 20
A100: 97 | B100: 郭岑村委会 | C100: 杨清俊 | D100: 1 | E100: 900 | F100: 900 | G100: 20
A101: 98 | B101: 郭岑村委会 | C101: 杨清窕 | D101: 3 | E101: 1926 | F101: 1926 | G101: 20
A102: 99 | B102: 郭岑村委会 | C102: 杨祖显 | D102: 1 | E102: 900 | F102: 900 | G102: 20
A103: 100 | B103: 郭岑村委会 | C103: 杨联对 | D103: 1 | E103: 900 | F103: 900 | G103: 20
A104: 101 | B104: 郭岑村委会 | C104: 杨荣誉 | D104: 3 | E104: 1980 | F104: 1980 | G104: 20
A105: 102 | B105: 郭岑村委会 | C105: 杨超群 | D105: 2 | E105: 1800 | F105: 1800 | G105: 20
A106: 103 | B106: 郭岑村委会 | C106: 杨连续 | D106: 2 | E106: 1460 | F106: 1460 | G106: 20
A107: 104 | B107: 郭岑村委会 | C107: 杨金阶 | D107: 2 | E107: 1800 | F107: 1800 | G107: 20
A108: 105 | B108: 郭岑村委会 | C108: 蔡乌女 | D108: 1 | E108: 900 | F108: 900 | G108: 20
A109: 106 | B109: 郭岑村委会 | C109: 蔡素真 | D109: 2 | E109: 1150 | F109: 1150 | G109: 20
A110: 107 | B110: 郭岑村委会 | C110: 郭倩倩 | D110: 1 | E110: 900 | F110: 900 | G110: 20
A111: 108 | B111: 郭岑村委会 | C111: 郭孙强 | D111: 2 | E111: 1800 | F111: 1800 | G111: 20
A112: 109 | B112: 郭岑村委会 | C112: 郭孙队 | D112: 2 | E112: 1460 | F112: 1460 | G112: 20
A113: 110 | B113: 郭岑村委会 | C113: 郭永朴 | D113: 1 | E113: 900 | F113: 900 | G113: 20
A114: 111 | B114: 郭岑村委会 | C114: 郭骏峰 | D114: 3 | E114: 1542 | F114: 1542 | G114: 20
A115: 112 | B115: 檗谷村委会 | C115: 柯秀瞈 | D115: 3 | E115: 1575 | F115: 1575 | G115: 20
A116: 113 | B116: 檗谷村委会 | C116: 谢丽君 | D116: 2 | E116: 1360 | F116: 1360 | G116: 20
A117: 114 | B117: 檗谷村委会 | C117: 谢秋红 | D117: 1 | E117: 900 | F117: 900 | G117: 20
A118: 115 | B118: 檗谷村委会 | C118: 陈秋霞 | D118: 3 | E118: 1650 | F118: 1650 | G118: 20
A119: 116 | B119: 檗谷村委会 | C119: 黄丽霞 | D119: 2 | E119: 1800 | F119: 1800 | G119: 20
A120: 117 | B120: 檗谷村委会 | C120: 黄佳缘 | D120: 1 | E120: 900 | F120: 900 | G120: 20
A121: 118 | B121: 檗谷村委会 | C121: 黄呈掀 | D121: 1 | E121: 900 | F121: 900 | G121: 20
A122: 119 | B122: 檗谷村委会 | C122: 黄天奖 | D122: 1 | E122: 900 | F122: 900 | G122: 20
A123: 120 | B123: 檗谷村委会 | C123: 黄川悟 | D123: 1 | E123: 900 | F123: 900 | G123: 20
A124: 121 | B124: 檗谷村委会 | C124: 黄敬安 | D124: 3 | E124: 1542 | F124: 1542 | G124: 20
A125: 122 | B125: 檗谷村委会 | C125: 黄林森 | D125: 3 | E125: 1302 | F125: 1302 | G125: 20
A126: 123 | B126: 檗谷村委会 | C126: 黄淋淋 | D126: 1 | E126: 900 | F126: 900 | G126: 20
A127: 124 | B127: 檗谷村委会 | C127: 黄碧清 | D127: 2 | E127: 1410 | F127: 1410 | G127: 20
A128: 125 | B128: 檗谷村委会 | C128: 黄秀镇 | D128: 4 | E128: 2720 | F128: 2720 | G128: 20
A129: 126 | B129: 檗谷村委会 | C129: 黄移开 | D129: 1 | E129: 630 | F129: 630 | G129: 20
A130: 127 | B130: 檗谷村委会 | C130: 黄联坤 | D130: 1 | E130: 900 | F130: 900 | G130: 20
A131: 128 | B131: 檗谷村委会 | C131: 黄贵州 | D131: 1 | E131: 900 | F131: 900 | G131: 20
A132: 129 | B132: 檗谷村委会 | C132: 黄辉力 | D132: 1 | E132: 900 | F132: 900 | G132: 20
A133: 130 | B133: 檗谷村委会 | C133: 黄连宝 | D133: 3 | E133: 1925 | F133: 1925 | G133: 20
A134: 131 | B134: 檗谷村委会 | C134: 黄阿一 | D134: 3 | E134: 2140 | F134: 2140 | G134: 20
A135: 132 | B135: 檗谷村委会 | C135: 黄阿迎 | D135: 1 | E135: 810 | F135: 810 | G135: 20
A136: 133 | B136: 檗谷村委会 | C136: 黄雪清 | D136: 1 | E136: 900 | F136: 900 | G136: 20
A137: 134 | B137: 埔头村委会 | C137: 张碧红 | D137: 2 | E137: 1260 | F137: 1260 | G137: 20
A138: 135 | B138: 埔头村委会 | C138: 杨丽真 | D138: 3 | E138: 1740 | F138: 1740 | G138: 20
A139: 136 | B139: 埔头村委会 | C139: 杨玉全 | D139: 1 | E139: 900 | F139: 900 | G139: 20
A140: 137 | B140: 埔头村委会 | C140: 洪再生 | D140: 1 | E140: 900 | F140: 900 | G140: 20
A141: 138 | B141: 埔头村委会 | C141: 洪清民 | D141: 1 | E141: 900 | F141: 900 | G141: 20
A142: 139 | B142: 埔头村委会 | C142: 洪清波 | D142: 4 | E142: 1920 | F142: 1920 | G142: 20
A143: 140 | B143: 埔头村委会 | C143: 洪源宗 | D143: 3 | E143: 2127 | F143: 2127 | G143: 20
A144: 141 | B144: 埔头村委会 | C144: 洪源树 | D144: 3 | E144: 1392 | F144: 1392 | G144: 20
A145: 142 | B145: 埔头村委会 | C145: 王欢迎 | D145: 2 | E145: 1260 | F145: 1260 | G145: 20
A146: 143 | B146: 埔头村委会 | C146: 王水深 | D146: 2 | E146: 1460 | F146: 1460 | G146: 20
A147: 144 | B147: 埔头村委会 | C147: 王清万 | D147: 4 | E147: 1800 | F147: 1800 | G147: 20
A148: 145 | B148: 埔头村委会 | C148: 王红羽 | D148: 3 | E148: 1540 | F148: 1540 | G148: 20
A149: 146 | B149: 埔头村委会 | C149: 肖东源 | D149: 1 | E149: 900 | F149: 900 | G149: 20
A150: 147 | B150: 埔头村委会 | C150: 肖文昌 | D150: 1 | E150: 900 | F150: 900 | G150: 20
A151: 148 | B151: 埔头村委会 | C151: 肖文锦 | D151: 1 | E151: 900 | F151: 900 | G151: 20
A152: 149 | B152: 埔头村委会 | C152: 肖爱国 | D152: 3 | E152: 2700 | F152: 2700 | G152: 20
A153: 150 | B153: 埔头村委会 | C153: 肖金林 | D153: 2 | E153: 1800 | F153: 1800 | G153: 20
A154: 151 | B154: 埔头村委会 | C154: 肖黎碧 | D154: 2 | E154: 1800 | F154: 1800 | G154: 20
A155: 152 | B155: 埔头村委会 | C155: 范方丹 | D155: 3 | E155: 1926 | F155: 1926 | G155: 20
A156: 153 | B156: 埔头村委会 | C156: 许碟 | D156: 1 | E156: 900 | F156: 900 | G156: 20
A157: 154 | B157: 埔头村委会 | C157: 郑明霞 | D157: 2 | E157: 1060 | F157: 1060 | G157: 20
A158: 155 | B158: 埔头村委会 | C158: 陈文红 | D158: 1 | E158: 900 | F158: 900 | G158: 20
A159: 156 | B159: 埔头村委会 | C159: 颜两旺 | D159: 2 | E159: 1410 | F159: 1410 | G159: 20
A160: 157 | B160: 埔头村委会 | C160: 颜振作 | D160: 1 | E160: 900 | F160: 900 | G160: 20
A161: 158 | B161: 埔头村委会 | C161: 颜金锯 | D161: 2 | E161: 1800 | F161: 1800 | G161: 20
A162: 159 | B162: 埔头村委会 | C162: 黄玉凤 | D162: 2 | E162: 1150 | F162: 1150 | G162: 20
A163: 160 | B163: 白沙村委会 | C163: 周丽圆 | D163: 1 | E163: 900 | F163: 900 | G163: 20
A164: 161 | B164: 白沙村委会 | C164: 周传玲 | D164: 1 | E164: 900 | F164: 900 | G164: 20
A165: 162 | B165: 白沙村委会 | C165: 周国标 | D165: 1 | E165: 900 | F165: 900 | G165: 20
A166: 163 | B166: 白沙村委会 | C166: 周宝珊 | D166: 1 | E166: 900 | F166: 900 | G166: 20
A167: 164 | B167: 白沙村委会 | C167: 周家良 | D167: 1 | E167: 900 | F167: 900 | G167: 20
A168: 165 | B168: 白沙村委会 | C168: 周小龙 | D168: 1 | E168: 900 | F168: 900 | G168: 20
A169: 166 | B169: 白沙村委会 | C169: 周庆发 | D169: 1 | E169: 900 | F169: 900 | G169: 20
A170: 167 | B170: 白沙村委会 | C170: 周志明 | D170: 1 | E170: 900 | F170: 900 | G170: 20
A171: 168 | B171: 白沙村委会 | C171: 周振南 | D171: 2 | E171: 1160 | F171: 1160 | G171: 20
A172: 169 | B172: 白沙村委会 | C172: 周润发 | D172: 1 | E172: 900 | F172: 900 | G172: 20
A173: 170 | B173: 白沙村委会 | C173: 周碧强 | D173: 3 | E173: 1542 | F173: 1542 | G173: 20
A174: 171 | B174: 白沙村委会 | C174: 周远滨 | D174: 1 | E174: 900 | F174: 900 | G174: 20
A175: 172 | B175: 白沙村委会 | C175: 周远超 | D175: 1 | E175: 900 | F175: 900 | G175: 20
A176: 173 | B176: 白沙村委会 | C176: 周连任 | D176: 1 | E176: 900 | F176: 900 | G176: 20
A177: 174 | B177: 白沙村委会 | C177: 张秀禀 | D177: 1 | E177: 900 | F177: 900 | G177: 20
A178: 175 | B178: 白沙村委会 | C178: 朱月娥 | D178: 3 | E178: 1200 | F178: 1200 | G178: 20
A179: 176 | B179: 白沙村委会 | C179: 洪清安 | D179: 2 | E179: 1160 | F179: 1160 | G179: 20
A180: 177 | B180: 东埕村委会 | C180: 叶光挺 | D180: 1 | E180: 900 | F180: 900 | G180: 20
A181: 178 | B181: 东埕村委会 | C181: 蔡丽环 | D181: 2 | E181: 1250 | F181: 1250 | G181: 20
A182: 179 | B182: 东埕村委会 | C182: 蔡乌辣 | D182: 1 | E182: 730 | F182: 730 | G182: 20
A183: 180 | B183: 东埕村委会 | C183: 蔡全明 | D183: 1 | E183: 900 | F183: 900 | G183: 20
A184: 181 | B184: 东埕村委会 | C184: 蔡尚碧 | D184: 3 | E184: 1500 | F184: 1500 | G184: 20
A185: 182 | B185: 东埕村委会 | C185: 蔡建国 | D185: 2 | E185: 1800 | F185: 1800 | G185: 20
A186: 183 | B186: 东埕村委会 | C186: 蔡志刚 | D186: 4 | E186: 2072 | F186: 2072 | G186: 20
A187: 184 | B187: 东埕村委会 | C187: 蔡明纯 | D187: 1 | E187: 900 | F187: 900 | G187: 20
A188: 185 | B188: 东埕村委会 | C188: 蔡永滚 | D188: 2 | E188: 1300 | F188: 1300 | G188: 20
A189: 186 | B189: 东埕村委会 | C189: 蔡清乞 | D189: 1 | E189: 900 | F189: 900 | G189: 20
A190: 187 | B190: 东埕村委会 | C190: 蔡联兴 | D190: 3 | E190: 1740 | F190: 1740 | G190: 20
A191: 188 | B191: 东埕村委会 | C191: 蔡联胜 | D191: 1 | E191: 900 | F191: 900 | G191: 20
A192: 189 | B192: 东埕村委会 | C192: 蔡长两 | D192: 1 | E192: 900 | F192: 900 | G192: 20
A193: 190 | B193: 东埕村委会 | C193: 蔡长流 | D193: 3 | E193: 1740 | F193: 1740 | G193: 20
A194: 191 | B194: 东埕村委会 | C194: 许淑珍 | D194: 2 | E194: 1800 | F194: 1800 | G194: 20
A195: 192 | B195: 东埕村委会 | C195: 许秀在 | D195: 2 | E195: 1800 | F195: 1800 | G195: 20
A196: 193 | B196: 东埕村委会 | C196: 陈秀旋 | D196: 2 | E196: 1160 | F196: 1160 | G196: 20
A197: 194 | B197: 东埕村委会 | C197: 陈美连 | D197: 3 | E197: 1152 | F197: 1152 | G197: 20
A198: 195 | B198: 东埕村委会 | C198: 龚青云 | D198: 4 | E198: 1800 | F198: 1800 | G198: 20
A199: 196 | B199: 湖头村委会 | C199: 李亚二 | D199: 1 | E199: 900 | F199: 900 | G199: 20
A200: 197 | B200: 湖头村委会 | C200: 李孙成 | D200: 4 | E200: 1720 | F200: 1720 | G200: 20
... 492 more rows

Sheet 2023年9月东石镇特困供养金、用电优惠金发放花名册
A1: 附件2
A2: 2023年9月东石镇特困供养金、用电优惠金发放花名册
A3: 序号 | B3: 村（社区） | C3: 户主姓名 | D3: 人数 | E3: 月供养金额 （元） | F3: 市财政分担（元） | G3: 用电优惠金（元）
A4: 1 | B4: 第一社区居委会 | C4: 叶建筑 | D4: 1 | E4: 2049 | F4: 2049 | G4: 20
A5: 2 | B5: 第一社区居委会 | C5: 叶美双 | D5: 1 | E5: 1366 | F5: 1366 | G5: 20
A6: 3 | B6: 第一社区居委会 | C6: 蔡福东 | D6: 1 | E6: 2049 | F6: 2049 | G6: 20
A7: 4 | B7: 第一社区居委会 | C7: 蔡美红 | D7: 1 | E7: 1660 | F7: 1660 | G7: 20
A8: 5 | B8: 第一社区居委会 | C8: 蔡自然 | D8: 1 | E8: 1366 | F8: 1366 | G8: 20
A9: 6 | B9: 第二社区居委会 | C9: 周燕燕 | D9: 1 | E9: 2490 | F9: 2490 | G9: 20
A10: 7 | B10: 第二社区居委会 | C10: 蔡天勇 | D10: 1 | E10: 1366 | F10: 1366 | G10: 20
A11: 8 | B11: 第二社区居委会 | C11: 陈伟锋 | D11: 1 | E11: 3225 | F11: 3225 | G11: 20
A12: 9 | B12: 第五社区居委会 | C12: 蔡金专 | D12: 1 | E12: 1366 | F12: 1366 | G12: 20
A13: 10 | B13: 第五社区居委会 | C13: 黄田佳 | D13: 1 | E13: 1366 | F13: 1366 | G13: 20
A14: 11 | B14: 第三社区居委会 | C14: 蔡永胜 | D14: 1 | E14: 2490 | F14: 2490 | G14: 20
A15: 12 | B15: 第三社区居委会 | C15: 蔡添福 | D15: 1 | E15: 1366 | F15: 1366 | G15: 20
A16: 13 | B16: 第三社区居委会 | C16: 蔡金福 | D16: 1 | E16: 2490 | F16: 2490 | G16: 20
A17: 14 | B17: 第三社区居委会 | C17: 黄恩典 | D17: 1 | E17: 1366 | F17: 1366 | G17: 20
A18: 15 | B18: 第四社区居委会 | C18: 苏金墘 | D18: 1 | E18: 1366 | F18: 1366 | G18: 20
A19: 16 | B19: 郭岑村委会 | C19: 杨式亲 | D19: 1 | E19: 1366 | F19: 1366 | G19: 20
A20: 17 | B20: 郭岑村委会 | C20: 杨英伟 | D20: 1 | E20: 1366 | F20: 1366 | G20: 20
A21: 18 | B21: 郭岑村委会 | C21: 郭孙新 | D21: 1 | E21: 3225 | F21: 3225 | G21: 20
A22: 19 | B22: 檗谷村委会 | C22: 黄双喜 | D22: 1 | E22: 1366 | F22: 1366 | G22: 20
A23: 20 | B23: 檗谷村委会 | C23: 黄奇忠 | D23: 1 | E23: 1366 | F23: 1366 | G23: 20
A24: 21 | B24: 檗谷村委会 | C24: 黄平均 | D24: 1 | E24: 2490 | F24: 2490 | G24: 20
A25: 22 | B25: 檗谷村委会 | C25: 黄襄园 | D25: 1 | E25: 1366 | F25: 1366 | G25: 20
A26: 23 | B26: 埔头村委会 | C26: 洪水龙 | D26: 1 | E26: 1366 | F26: 1366 | G26: 20
A27: 24 | B27: 埔头村委会 | C27: 颜厥茂 | D27: 1 | E27: 1366 | F27: 1366 | G27: 20
A28: 25 | B28: 埔头村委会 | C28: 颜孙忠 | D28: 1 | E28: 1366 | F28: 1366 | G28: 20
A29: 26 | B29: 埔头村委会 | C29: 颜文泽 | D29: 1 | E29: 1660 | F29: 1660 | G29: 20
A30: 27 | B30: 埔头村委会 | C30: 颜海滩 | D30: 1 | E30: 1660 | F30: 1660 | G30: 20
A31: 28 | B31: 埔头村委会 | C31: 颜聪明 | D31: 1 | E31: 1660 | F31: 1660 | G31: 20
A32: 29 | B32: 白沙村委会 | C32: 周嘉惠 | D32: 1 | E32: 2490 | F32: 2490 | G32: 20
A33: 30 | B33: 白沙村委会 | C33: 周天降 | D33: 1 | E33: 1660 | F33: 1660 | G33: 20
A34: 31 | B34: 白沙村委会 | C34: 周志雄 | D34: 1 | E34: 1366 | F34: 1366 | G34: 20
A35: 32 | B35: 白沙村委会 | C35: 周碧珠 | D35: 1 | E35: 2150 | F35: 2150 | G35: 20
A36: 33 | B36: 白沙村委会 | C36: 周荣耀 | D36: 1 | E36: 1366 | F36: 1366 | G36: 20
A37: 34 | B37: 白沙村委会 | C37: 黄阿会 | D37: 1 | E37: 1366 | F37: 1366 | G37: 20
A38: 35 | B38: 东埕村委会 | C38: 蔡尤再 | D38: 1 | E38: 1366 | F38: 1366 | G38: 20
A39: 36 | B39: 东埕村委会 | C39: 蔡崇江 | D39: 1 | E39: 2490 | F39: 2490 | G39: 20
A40: 37 | B40: 东埕村委会 | C40: 蔡崇泰 | D40: 1 | E40: 1366 | F40: 1366 | G40: 20
A41: 38 | B41: 东埕村委会 | C41: 蔡志亭 | D41: 1 | E41: 1366 | F41: 1366 | G41: 20
A42: 39 | B42: 湖头村委会 | C42: 黄文灿 | D42: 1 | E42: 1366 | F42: 1366 | G42: 20
A43: 40 | B43: 湖头村委会 | C43: 黄海水 | D43: 1 | E43: 1366 | F43: 1366 | G43: 20
A44: 41 | B44: 湖头村委会 | C44: 黄金柱 | D44: 1 | E44: 1366 | F44: 1366 | G44: 20
A45: 42 | B45: 潘径村委会 | C45: 张文吨 | D45: 1 | E45: 1660 | F45: 1660 | G45: 20
A46: 43 | B46: 潘径村委会 | C46: 张清华 | D46: 1 | E46: 1660 | F46: 1660 | G46: 20
A47: 44 | B47: 潘径村委会 | C47: 张清顺 | D47: 1 | E47: 1660 | F47: 1660 | G47: 20
A48: 45 | B48: 潘径村委会 | C48: 张荣州 | D48: 1 | E48: 1366 | F48: 1366 | G48: 20
A49: 46 | B49: 潘径村委会 | C49: 张连志 | D49: 1 | E49: 1660 | F49: 1660 | G49: 20
A50: 47 | B50: 潘径村委会 | C50: 张阿昌 | D50: 1 | E50: 1660 | F50: 1660 | G50: 20
A51: 48 | B51: 潘径村委会 | C51: 李建家 | D51: 1 | E51: 1660 | F51: 1660 | G51: 20
A52: 49 | B52: 潘山村委会 | C52: 郑志猛 | D52: 1 | E52: 1366 | F52: 1366 | G52: 20
A53: 50 | B53: 潘山村委会 | C53: 郑金针 | D53: 1 | E53: 1366 | F53: 1366 | G53: 20
A54: 51 | B54: 梅峰村委会 | C54: 蔡清埕 | D54: 1 | E54: 2150 | F54: 2150 | G54: 20
A55: 52 | B55: 大房村委会 | C55: 许天从 | D55: 1 | E55: 1366 | F55: 1366 | G55: 20
A56: 53 | B56: 大房村委会 | C56: 许秀甜 | D56: 1 | E56: 2150 | F56: 2150 | G56: 20
A57: 54 | B57: 洪塘村委会 | C57: 张良伴 | D57: 1 | E57: 1660 | F57: 1660 | G57: 20
A58: 55 | B58: 洪塘村委会 | C58: 张远青 | D58: 1 | E58: 1660 | F58: 1660 | G58: 20
A59: 56 | B59: 井林村委会 | C59: 许友志 | D59: 1 | E59: 1366 | F59: 1366 | G59: 20
A60: 57 | B60: 井林村委会 | C60: 许宇宙 | D60: 1 | E60: 1366 | F60: 1366 | G60: 20
A61: 58 | B61: 井林村委会 | C61: 许建家 | D61: 1 | E61: 2490 | F61: 2490 | G61: 20
A62: 59 | B62: 井林村委会 | C62: 许昔宣 | D62: 1 | E62: 1660 | F62: 1660 | G62: 20
A63: 60 | B63: 金瓯村委会 | C63: 王为佬 | D63: 1 | E63: 1366 | F63: 1366 | G63: 20
A64: 61 | B64: 金瓯村委会 | C64: 王为文 | D64: 1 | E64: 1660 | F64: 1660 | G64: 20
A65: 62 | B65: 萧下村委会 | C65: 肖加平 | D65: 1 | E65: 1366 | F65: 1366 | G65: 20
A66: 63 | B66: 萧下村委会 | C66: 萧争取 | D66: 1 | E66: 1366 | F66: 1366 | G66: 20
A67: 64 | B67: 萧下村委会 | C67: 萧元头 | D67: 1 | E67: 1366 | F67: 1366 | G67: 20
A68: 65 | B68: 萧下村委会 | C68: 萧永乐 | D68: 1 | E68: 1660 | F68: 1660 | G68: 20
A69: 66 | B69: 萧下村委会 | C69: 萧永安 | D69: 1 | E69: 1366 | F69: 1366 | G69: 20
A70: 67 | B70: 萧下村委会 | C70: 萧诚实 | D70: 1 | E70: 1366 | F70: 1366 | G70: 20
A71: 68 | B71: 萧下村委会 | C71: 萧金仓 | D71: 1 | E71: 1660 | F71: 1660 | G71: 20
A72: 69 | B72: 萧下村委会 | C72: 萧金珠 | D72: 1 | E72: 1366 | F72: 1366 | G72: 20
A73: 70 | B73: 永湖村委会 | C73: 蔡康友 | D73: 1 | E73: 2049 | F73: 2049 | G73: 20
A74: 71 | B74: 永湖村委会 | C74: 蔡文化 | D74: 1 | E74: 1366 | F74: 1366 | G74: 20
A75: 72 | B75: 永湖村委会 | C75: 蔡文滨 | D75: 1 | E75: 1366 | F75: 1366 | G75: 20
A76: 73 | B76: 永湖村委会 | C76: 黄秀选 | D76: 1 | E76: 1366 | F76: 1366 | G76: 20
A77: 74 | B77: 永湖村委会 | C77: 黄花蕊 | D77: 1 | E77: 1660 | F77: 1660 | G77: 20
A78: 75 | B78: 龙下村委会 | C78: 陈朝宗 | D78: 1 | E78: 1366 | F78: 1366 | G78: 20
A79: 76 | B79: 许西坑村委会 | C79: 张天得 | D79: 1 | E79: 1660 | F79: 1660 | G79: 20
A80: 77 | B80: 许西坑村委会 | C80: 许健元 | D80: 1 | E80: 2490 | F80: 2490 | G80: 20
A81: 78 | B81: 许西坑村委会 | C81: 许武矮 | D81: 1 | E81: 1660 | F81: 1660 | G81: 20
A82: 79 | B82: 许西坑村委会 | C82: 许贻巩 | D82: 1 | E82: 1660 | F82: 1660 | G82: 20
A83: 80 | B83: 许西坑村委会 | C83: 许青铁 | D83: 1 | E83: 1660 | F83: 1660 | G83: 20
A84: 81 | B84: 平坑村委会 | C84: 陈进吞 | D84: 1 | E84: 1366 | F84: 1366 | G84: 20
A85: 82 | B85: 大白山村委会 | C85: 杨元集 | D85: 1 | E85: 2490 | F85: 2490 | G85: 20
A86: 83 | B86: 大白山村委会 | C86: 许武监 | D86: 1 | E86: 1660 | F86: 1660 | G86: 20
A87: 84 | B87: 坑园村委会 | C87: 吴招象 | D87: 1 | E87: 1660 | F87: 1660 | G87: 20
A88: 85 | B88: 坑园村委会 | C88: 吴荣参 | D88: 1 | E88: 1660 | F88: 1660 | G88: 20
A89: 86 | B89: 柯村村委会 | C89: 柯贤填 | D89: 1 | E89: 1366 | F89: 1366 | G89: 20
A90: 87 | B90: 金泽村委会 | C90: 吴元额 | D90: 1 | E90: 1660 | F90: 1660 | G90: 20
A91: 88 | B91: 金泽村委会 | C91: 杨电灯 | D91: 1 | E91: 2150 | F91: 2150 | G91: 20
A92: 89 | B92: 清透村委会 | C92: 张昌灿 | D92: 1 | E92: 2490 | F92: 2490 | G92: 20
A93: 90 | B93: 清透村委会 | C93: 张良文 | D93: 1 | E93: 1366 | F93: 1366 | G93: 20
A94: 91 | B94: 塔头刘村委会 | C94: 刘基本 | D94: 1 | E94: 1366 | F94: 1366 | G94: 20
A95: 92 | B95: 塔头刘村委会 | C95: 刘天温 | D95: 1 | E95: 1366 | F95: 1366 | G95: 20
A96: 93 | B96: 塔头刘村委会 | C96: 刘建利 | D96: 1 | E96: 2150 | F96: 2150 | G96: 20
A97: 94 | B97: 塔头刘村委会 | C97: 刘文契 | D97: 1 | E97: 1366 | F97: 1366 | G97: 20
A98: 95 | B98: 塔头刘村委会 | C98: 刘清意 | D98: 1 | E98: 1366 | F98: 1366 | G98: 20
A99: 96 | B99: 塔头刘村委会 | C99: 刘秀兀 | D99: 1 | E99: 1660 | F99: 1660 | G99: 20
A100: 97 | B100: 塔头刘村委会 | C100: 刘连波 | D100: 1 | E100: 2150 | F100: 2150 | G100: 20
A101: 98 | B101: 塔头刘村委会 | C101: 刘仲懋 | D101: 1 | E101: 2049 | F101: 2049 | G101: 20
A102: 99 | B102: 塔头孙村委会 | C102: 孙丕国 | D102: 1 | E102: 1366 | F102: 1366 | G102: 20
A103: 100 | B103: 塔头孙村委会 | C103: 孙天注 | D103: 1 | E103: 1366 | F103: 1366 | G103: 20
A104: 101 | B104: 塔头孙村委会 | C104: 孙晋后 | D104: 1 | E104: 1366 | F104: 1366 | G104: 20
A105: 102 | B105: 塔头孙村委会 | C105: 孙秀坚 | D105: 1 | E105: 1366 | F105: 1366 | G105: 20
A106: 103 | B106: 塔头孙村委会 | C106: 蔡康熙 | D106: 1 | E106: 1366 | F106: 1366 | G106: 20
A107: 104 | B107: 三乡村委会 | C107: 吴辉河 | D107: 1 | E107: 1366 | F107: 1366 | G107: 20
A108: 105 | B108: 三乡村委会 | C108: 黄培增 | D108: 1 | E108: 1660 | F108: 1660 | G108: 20
A109: 106 | B109: 张厝村委会 | C109: 王宇宙 | D109: 1 | E109: 1660 | F109: 1660 | G109: 20
A110: 107 | B110: 张厝村委会 | C110: 王美假 | D110: 1 | E110: 1366 | F110: 1366 | G110: 20
A111: 108 | B111: 张厝村委会 | C111: 王美楷 | D111: 1 | E111: 1366 | F111: 1366 | G111: 20
A112: 合计 | E112: =SUM(E4:E111) -> 178448 | F112: =SUM(F4:F111) -> 178448 | G112: =SUM(G4:G111) -> 2160

Sheet 2023年9月东石镇80周岁及以上低保老年人高龄补贴发放花名
A1: 附件3
A2: 2023年9月东石镇80周岁及以上低保老年人 高龄补贴发放花名册
A3: 序号 | B3: 村（社区） | C3: 姓名 | D3: 发放标准（元/月） | E3: 合计（元）
A4: 1 | B4: 第一社区居委会 | C4: 苏秀华 | D4: 100 | E4: 100
A5: 2 | B5: 第一社区居委会 | C5: 谢柚柑 | D5: 100 | E5: 100
A6: 3 | B6: 第一社区居委会 | C6: 蔡秀端 | D6: 100 | E6: 100
A7: 4 | B7: 第二社区居委会 | C7: 郭金镯 | D7: 100 | E7: 100
A8: 5 | B8: 第二社区居委会 | C8: 蔡喜鹊 | D8: 100 | E8: 100
A9: 6 | B9: 第三社区居委会 | C9: 吴先 | D9: 100 | E9: 100
A10: 7 | B10: 第三社区居委会 | C10: 吴乌笑 | D10: 100 | E10: 100
A11: 8 | B11: 第四社区居委会 | C11: 叶淑惠 | D11: 100 | E11: 100
A12: 9 | B12: 郭岑村委会 | C12: 许丽明 | D12: 100 | E12: 100
A13: 10 | B13: 檗谷村委会 | C13: 黄秀镇 | D13: 100 | E13: 100
A14: 11 | B14: 埔头村委会 | C14: 许碟 | D14: 100 | E14: 100
A15: 12 | B15: 埔头村委会 | C15: 杨宝珠 | D15: 100 | E15: 100
A16: 13 | B16: 湖头村委会 | C16: 颜红绸 | D16: 100 | E16: 100
A17: 14 | B17: 大房村委会 | C17: 刘宿 | D17: 100 | E17: 100
A18: 15 | B18: 洪塘村委会 | C18: 张子目 | D18: 100 | E18: 100
A19: 16 | B19: 洪塘村委会 | C19: 许秀来 | D19: 100 | E19: 100
A20: 17 | B20: 洪塘村委会 | C20: 张沃水 | D20: 100 | E20: 100
A21: 18 | B21: 洪塘村委会 | C21: 张连耍 | D21: 100 | E21: 100
A22: 19 | B22: 金瓯村委会 | C22: 蔡乌最 | D22: 100 | E22: 100
A23: 20 | B23: 金瓯村委会 | C23: 王为筑 | D23: 100 | E23: 100
A24: 21 | B24: 萧下村委会 | C24: 萧光管 | D24: 100 | E24: 100
A25: 22 | B25: 萧下村委会 | C25: 萧景阳 | D25: 100 | E25: 100
A26: 23 | B26: 永湖村委会 | C26: 蔡崇含 | D26: 100 | E26: 100
A27: 24 | B27: 永湖村委会 | C27: 杨丽月 | D27: 100 | E27: 100
A28: 25 | B28: 大白山村委会 | C28: 曾国县 | D28: 100 | E28: 100
A29: 26 | B29: 坑园村委会 | C29: 吴亮应 | D29: 100 | E29: 100
A30: 27 | B30: 金泽村委会 | C30: 杨绪钹 | D30: 100 | E30: 100
A31: 28 | B31: 清透村委会 | C31: 许秀花 | D31: 100 | E31: 100
A32: 29 | B32: 清透村委会 | C32: 张明月 | D32: 100 | E32: 100
A33: 30 | B33: 塔头刘村委会 | C33: 吴禀花 | D33: 100 | E33: 100
A34: 31 | B34: 塔头刘村委会 | C34: 肖来好 | D34: 100 | E34: 100
A35: 合计 | D35: =SUM(D4:D34) -> 3100 | E35: =SUM(E4:E34) -> 3100

Sheet 2023年9月东石镇低保资金发放汇总表
A1: 附件4
A2: 2023年9月东石镇低保资金发放汇总表
A3: 序号 | B3: 村（社区） | C3: 城乡低保户数 | D3: 发放城乡低保金（元） | E3: 特困人员人数 | F3: 发放供养金（元） | G3: 发放用电优惠金（元） | H3: 80周岁及以上低保老年人数 | I3: 发放高龄补贴（元）
A4: 1 | B4: 第一社区居委会 | C4: 33 | D4: 41645 | E4: 5 | F4: 8490 | G4: =(C4+E4)*20 -> 760 | H4: 3 | I4: 300 | K4: =(C4+E4)*20 -> 760
A5: 2 | B5: 第二社区居委会 | C5: 14 | D5: 19662 | E5: 3 | F5: 7081 | G5: =(C5+E5)*20 -> 340 | H5: 2 | I5: 200
A6: 3 | B6: 第五社区居委会 | C6: 4 | D6: 3750 | E6: 2 | F6: 2732 | G6: 120 | H6: 0 | I6: 0
A7: 4 | B7: 第三社区居委会 | C7: 18 | D7: 22020 | E7: 4 | F7: 7712 | G7: 440 | H7: 2 | I7: 200
A8: 5 | B8: 第四社区居委会 | C8: 19 | D8: 24812 | E8: 1 | F8: 1366 | G8: 400 | H8: 1 | I8: 100
A9: 6 | B9: 郭岑村委会 | C9: 23 | D9: 35098 | E9: 3 | F9: 5957 | G9: 520 | H9: 1 | I9: 100
A10: 7 | B10: 檗谷村委会 | C10: 22 | D10: 27864 | E10: 4 | F10: 6588 | G10: 520 | H10: 1 | I10: 100
A11: 8 | B11: 埔头村委会 | C11: 26 | D11: 36245 | E11: 6 | F11: 9078 | G11: 640 | H11: 2 | I11: 200
A12: 9 | B12: 白沙村委会 | C12: 17 | D12: 16762 | E12: 6 | F12: 10398 | G12: 460 | H12: 0 | I12: 0
A13: 10 | B13: 东埕村委会 | C13: 19 | D13: 25244 | E13: 4 | F13: 6588 | G13: 460 | H13: 0 | I13: 0
A14: 11 | B14: 湖头村委会 | C14: 21 | D14: 28115 | E14: 3 | F14: 4098 | G14: 480 | H14: 1 | I14: 100
A15: 12 | B15: 潘径村委会 | C15: 27 | D15: 44145 | E15: 7 | F15: 11326 | G15: 680 | H15: 0 | I15: 0
A16: 13 | B16: 潘山村委会 | C16: 13 | D16: 17066 | E16: 2 | F16: 2732 | G16: 300 | H16: 0 | I16: 0
A17: 14 | B17: 梅峰村委会 | C17: 20 | D17: 26773 | E17: 1 | F17: 2150 | G17: 420 | H17: 0 | I17: 0
A18: 15 | B18: 梅塘村委会 | C18: 9 | D18: 13180 | E18: 0 | F18: 0 | G18: 180 | H18: 0 | I18: 0
A19: 16 | B19: 大房村委会 | C19: 43 | D19: 46175 | E19: 2 | F19: 3516 | G19: 900 | H19: 1 | I19: 100
A20: 17 | B20: 洪塘村委会 | C20: 26 | D20: 43412 | E20: 2 | F20: 3320 | G20: 560 | H20: 4 | I20: 400
A21: 18 | B21: 井林村委会 | C21: 17 | D21: 20712 | E21: 4 | F21: 6882 | G21: 420 | H21: 0 | I21: 0
A22: 19 | B22: 金瓯村委会 | C22: 28 | D22: 43970 | E22: 2 | F22: 3026 | G22: 600 | H22: 2 | I22: 200
A23: 20 | B23: 萧下村委会 | C23: 19 | D23: 28862 | E23: 8 | F23: 11516 | G23: 540 | H23: 2 | I23: 200
A24: 21 | B24: 永湖村委会 | C24: 31 | D24: 35749 | E24: 5 | F24: 7807 | G24: 720 | H24: 2 | I24: 200
A25: 22 | B25: 龙下村委会 | C25: 13 | D25: 14220 | E25: 1 | F25: 1366 | G25: 280 | H25: 0 | I25: 0
A26: 23 | B26: 许西坑村委会 | C26: 37 | D26: 50010 | E26: 5 | F26: 9130 | G26: 840 | H26: 0 | I26: 0
A27: 24 | B27: 平坑村委会 | C27: 11 | D27: 13785 | E27: 1 | F27: 1366 | G27: 240 | H27: 0 | I27: 0
A28: 25 | B28: 大白山村委会 | C28: 31 | D28: 43413 | E28: 2 | F28: 4150 | G28: 660 | H28: 1 | I28: 100
A29: 26 | B29: 坑园村委会 | C29: 14 | D29: 20973 | E29: 2 | F29: 3320 | G29: 320 | H29: 1 | I29: 100
A30: 27 | B30: 柯村村委会 | C30: 12 | D30: 18557 | E30: 1 | F30: 1366 | G30: 260 | H30: 0 | I30: 0
A31: 28 | B31: 金泽村委会 | C31: 9 | D31: 11606 | E31: 2 | F31: 3810 | G31: 220 | H31: 1 | I31: 100
A32: 29 | B32: 清透村委会 | C32: 10 | D32: 18132 | E32: 2 | F32: 3856 | G32: 240 | H32: 2 | I32: 200
A33: 30 | B33: 塔头刘村委会 | C33: 27 | D33: 38472 | E33: 8 | F33: 13473 | G33: 700 | H33: 2 | I33: 200
A34: 31 | B34: 塔头孙村委会 | C34: 19 | D34: 20341 | E34: 5 | F34: 6830 | G34: 480 | H34: 0 | I34: 0
A35: 32 | B35: 光渺村委会 | C35: 18 | D35: 22080 | E35: 0 | F35: 0 | G35: 360 | H35: 0 | I35: 0
A36: 33 | B36: 三乡村委会 | C36: 13 | D36: 20213 | E36: 2 | F36: 3026 | G36: 300 | H36: 0 | I36: 0
A37: 34 | B37: 张厝村委会 | C37: 25 | D37: 28960 | E37: 3 | F37: 4392 | G37: 560 | H37: 0 | I37: 0
A38: 合计 | C38: =SUM(C4:C37) -> 688 | D38: 922023 | E38: 108 | F38: 178448 | G38: 15920 | H38: 31 | I38: 3100
D42: =D38+F38+G38+I38 -> 1119491 | F42: =D38+F38 -> 1100471
